fUSD/lending_fUSD_20240702
["ID","MTS","AMOUNT","RATE_DAILY","PERIOD"]
[330907053,1719937834685,-500.0,0.00021069,2]
[330907054,1719937834694,-2500.0,0.00021079,2]
[330907055,1719937834703,-151.0,0.0002108,2]
[330907056,1719937834712,-324.65968826,0.000211,2]
[330907057,1719937834721,-260.087136,0.00021112,2]
[330907058,1719937834730,-151.078078,0.00021112,2]
[330907059,1719937834741,-2331.015579,0.00021112,2]
[330907060,1719937834750,-447.671212,0.00021112,2]
[330907061,1719937834759,-520.174273,0.00021112,2]
[330907062,1719937834768,-1566.437082,0.00021112,2]
[330907063,1719937834777,-6648.519996,0.00021112,2]
[330907064,1719937834786,-301.701431,0.00021112,2]
[330907065,1719937834797,-1044.291388,0.00021112,2]
[330907066,1719937834808,-520.174274,0.00021112,2]
[330907067,1719937834821,-301.70143,0.00021112,2]
[330907068,1719937834831,-2675.542322,0.00021112,2]
[330907069,1719937834841,-162.19001751,0.00021119,2]
[330907070,1719937834851,-181.22770058,0.00021124,2]
[330907071,1719937834862,-181.22770058,0.00021125,2]
[330907072,1719937834872,-157.58773494,0.00021137,2]
[330907073,1719937834882,-256.16542967,0.00021158,2]
[330907074,1719937834892,-618.0,0.00021179,2]
[330907075,1719937834901,-166.0,0.00021179,2]
[330907076,1719937834910,-813.0,0.00021179,2]
[330907077,1719937834920,-448.0,0.00021179,2]
[330907078,1719937834930,-443.0,0.00021179,2]
[330907079,1719937834939,-150.0,0.00021179,2]
[330907080,1719937834949,-1304.0,0.00021179,2]
[330907081,1719937834958,-2416.0,0.00021179,2]
[330907082,1719937834967,-3205.0,0.00021179,2]
[330907083,1719937834977,-548.0,0.00021179,2]
[330907084,1719937834986,-1987.0,0.00021179,2]
[330907085,1719937834996,-1070.0,0.00021179,2]
[330907086,1719937835010,-1274.0,0.00021179,2]
[330907087,1719937835025,-5175.0,0.00021179,2]
[330907088,1719937835034,-1830.0,0.00021179,2]
[330907089,1719937835043,-360.0,0.00021179,2]
[330907090,1719937835055,-5808.0,0.00021179,2]
[330907091,1719937835065,-291.0,0.00021179,2]
[330907092,1719937835074,-150.05280107,0.00021195,2]
[330907093,1719937835083,-170.139892,0.00021199,2]
[330907094,1719937835092,-186.529673,0.00021199,2]
[330907095,1719937835101,-186.529672,0.00021199,2]
[330907096,1719937835111,-204.92818495,0.00021221,2]
[330907097,1719937835121,-500.0,0.00021249,2]
[330907098,1719937835130,-152.52853177,0.00021256,2]
[330907099,1719937835140,-152.52853177,0.00021281,2]
[330907100,1719937835150,-150.05280107,0.00021306,2]
[330907101,1719937835159,-300.0,0.0002133,2]
[330907102,1719937835168,-500.0,0.0002133,2]
[330907103,1719937835179,-256.16542967,0.00021359,2]
[330907104,1719937835188,-168.49900697,0.00021363,2]
[330907105,1719937835198,-185.098929,0.00021373,2]
[330907106,1719937835207,-160.068007,0.00021373,2]
[330907107,1719937835216,-260.087136,0.00021373,2]
[330907108,1719937835225,-151.078078,0.00021373,2]
[330907109,1719937835234,-2331.015579,0.00021373,2]
[330907110,1719937835243,-447.671212,0.00021373,2]
[330907111,1719937835252,-520.174273,0.00021373,2]
[330907112,1719937835261,-1566.437082,0.00021373,2]
[330907113,1719937835271,-6648.519996,0.00021373,2]
[330907114,1719937835279,-301.701431,0.00021373,2]
[330907115,1719937835288,-1044.291388,0.00021373,2]
[330907116,1719937835297,-520.174274,0.00021373,2]
[330907117,1719937835306,-301.70143,0.00021373,2]
[330907118,1719937835315,-2675.542322,0.00021373,2]
[330907119,1719937835324,-152.52853177,0.00021387,2]
[330907120,1719937835333,-150.05280107,0.00021389,2]
[330907121,1719937835342,-151.0,0.00021395,2]
[330907122,1719937835351,-162.19001751,0.00021421,2]
[330907123,1719937835360,-500.0,0.00021428,2]
[330907124,1719937835370,-4773.99777968,0.00021429,2]
[330907125,1719937835379,-204.92818495,0.00021429,2]
[330907126,1719937835388,-162.19001751,0.00021456,2]
[330907127,1719937835397,-166.66666666,0.00021472,2]
[330907128,1719937835406,-621.37867724,0.00021487,2]
[330907129,1719937835415,-621.37867724,0.00021494,2]
[330907130,1719937835424,-1142.86544401,0.00021534,2]
[330907131,1719937835434,-153.66295654,0.00021537,2]
[330907132,1719937835443,-160.07,0.00021539,2]
[330907133,1719937835452,-153.66295654,0.00021545,2]
[330907134,1719937835462,-170.139892,0.00021547,2]
[330907135,1719937835470,-186.529673,0.00021547,2]
[330907136,1719937835479,-186.529672,0.00021547,2]
[330907137,1719937835489,-164.98217215,0.00021547,2]
[330907138,1719937835498,-1000.0,0.00021604,2]
[330907139,1719937835507,-500.0,0.00021607,2]
[330907140,1719937835516,-153.66295654,0.00021622,2]
[330907141,1719937835525,-621.37867724,0.00021626,2]
[330907142,1719937835534,-260.087136,0.00021634,2]
[330907143,1719937835543,-151.078078,0.00021634,2]
[330907144,1719937835553,-2331.015579,0.00021634,2]
[330907145,1719937835562,-447.671212,0.00021634,2]
[330907146,1719937835571,-520.174273,0.00021634,2]
[330907147,1719937835581,-1566.437082,0.00021634,2]
[330907148,1719937835590,-6648.519996,0.00021634,2]
[330907149,1719937835600,-301.701431,0.00021634,2]
[330907150,1719937835775,-520.174274,0.00021634,2]
[330907151,1719937835785,-1044.291388,0.00021634,2]
[330907152,1719937835794,-301.70143,0.00021634,2]
[330907153,1719937835803,-2675.542322,0.00021634,2]
[330907154,1719937835814,-4773.99777968,0.00021638,2]
[330907155,1719937835825,-204.92818495,0.00021638,2]
[330907156,1719937835834,-158.11,0.00021644,2]
[330907157,1719937835843,-156.02,0.00021644,2]
[330907158,1719937835852,-151.14566896,0.00021706,2]
[330907159,1719937835862,-210.06246653,0.00021706,2]
[330907160,1719937835871,-256.16542967,0.00021707,2]
[330907161,1719937835880,-151.0,0.00021711,2]
[330907162,1719937835889,-153.66295654,0.0002172,2]
[330907163,1719937835899,-1142.86544397,0.00021728,2]
[330907164,1719937835908,-153.66295654,0.00021733,2]
[330907165,1719937835917,-150.05280107,0.00021737,2]
[330907166,1719937835927,-151.14566896,0.00021745,2]
[330907167,1719937835936,-621.37867724,0.00021747,2]
[330907168,1719937835945,-154.32554551,0.00021774,2]
[330907169,1719937835954,-7500.0,0.00021784,2]
[330907170,1719937835963,-151.14566896,0.00021785,2]
[330907171,1719937835972,-500.0,0.00021786,2]
[330907172,1719937835981,-621.37867724,0.00021795,2]
[330907173,1719937835992,-331.21,0.00021796,2]
[330907174,1719937836002,-150.0,0.00021796,2]
[330907175,1719937836015,-150.0,0.00021796,2]
[330907176,1719937836024,-528.33,0.00021796,2]
[330907177,1719937836034,-528.33,0.00021796,2]
[330907178,1719937836043,-522.86,0.00021796,2]
[330907179,1719937836054,-1141.0,0.000218,2]
[330907180,1719937836063,-166.67,0.00021825,2]
[330907181,1719937836073,-236.48271628,0.00021831,2]
[330907182,1719937836082,-621.37867724,0.00021845,2]
[330907183,1719937836093,-4773.99777968,0.00021847,2]
[330907184,1719937836103,-204.92818495,0.00021847,2]
[330907185,1719937836112,-150.05280107,0.00021863,2]
[330907186,1719937836121,-150.0,0.00021869,2]
[330907187,1719937836130,-150.0,0.00021869,2]
[330907188,1719937836139,-150.0,0.00021869,2]
[330907189,1719937836149,-150.0,0.00021869,2]
[330907190,1719937836159,-150.0,0.00021869,2]
[330907191,1719937836168,-202.50205,0.00021869,2]
[330907192,1719937836177,-29251.24092824,0.0002187,2]
[330907193,1719937836187,-1000.0,0.00021878,2]
[330907194,1719937836196,-621.37867724,0.00021889,2]
[330907195,1719937836205,-185.098929,0.00021894,2]
[330907196,1719937836215,-160.068007,0.00021894,2]
[330907197,1719937836224,-157.652351,0.00021894,2]
[330907198,1719937836233,-170.139892,0.00021894,2]
[330907199,1719937836243,-151.476337,0.00021894,2]
[330907200,1719937836253,-186.529673,0.00021894,2]
[330907201,1719937836263,-220.051005,0.00021894,2]
[330907202,1719937836272,-186.529672,0.00021894,2]
[330907203,1719937836282,-260.087136,0.00021894,2]
[330907204,1719937836291,-151.078078,0.00021894,2]
[330907205,1719937836300,-2331.015579,0.00021894,2]
[330907206,1719937836310,-447.671212,0.00021894,2]
[330907207,1719937836319,-520.174273,0.00021894,2]
[330907208,1719937836329,-1566.437082,0.00021894,2]
[330907209,1719937836338,-6648.519996,0.00021894,2]
[330907210,1719937836348,-301.701431,0.00021894,2]
[330907211,1719937836358,-520.174274,0.00021894,2]
[330907212,1719937836367,-1044.291388,0.00021894,2]
[330907213,1719937836377,-301.70143,0.00021894,2]
[330907214,1719937836386,-2675.542322,0.00021894,2]
[330907215,1719937836396,-305.14,0.000219,2]
[330907216,1719937836405,-152.52853177,0.000219,2]
[330907217,1719937836415,-153.66295654,0.00021902,2]
[330907218,1719937836425,-726.77,0.00021918,2]
[330907219,1719937836434,-270.39,0.00021918,2]
[330907220,1719937836444,-154.39,0.00021918,2]
[330907221,1719937836453,-150.0,0.00021918,2]
[330907222,1719937836464,-1142.86544397,0.00021921,2]
[330907223,1719937836474,-161.18124067,0.00021954,2]
[330907224,1719937836483,-152.52853177,0.00021956,2]
[330907225,1719937836494,-500.0,0.00021965,2]
[330907226,1719937836503,-3172.32459788,0.00021986,2]
[330907227,1719937836513,-1012.65875,0.00022,2]
[330907228,1719937836522,-151.0,0.00022027,2]
[330907229,1719937836532,-621.37867724,0.0002203,2]
[330907230,1719937836541,-161.63695893,0.00022039,2]
[330907231,1719937836551,-4773.99777968,0.00022055,2]
[330907232,1719937836561,-204.92818495,0.00022055,2]
[330907233,1719937836570,-1355.5759265,0.00022085,2]
[330907234,1719937836579,-16123.5531887,0.00022085,2]
[330907235,1719937836589,-973.03278782,0.0002209,2]
[330907236,1719937836598,-3000.0,0.0002209,2]
[330907237,1719937836608,-162.19001751,0.00022092,2]
[330907238,1719937836617,-2018.58415497,0.00022098,2]
[330907239,1719937836626,-206.36495546,0.000221,2]
[330907240,1719937836636,-163.71307365,0.000221,2]
[330907241,1719937836645,-226.27425521,0.0002211,2]
[330907242,1719937836655,-1142.86544397,0.00022115,2]
[330907243,1719937836664,-155.77732901,0.00022121,2]
[330907244,1719937836673,-151.0,0.00022134,2]
[330907245,1719937836682,-150.05280107,0.0002214,2]
[330907246,1719937836692,-150.05280107,0.00022141,2]
[330907247,1719937836702,-6276.62953969,0.00022142,2]
[330907248,1719937836711,-15670.128,0.00022142,2]
[330907249,1719937836720,-54705.58427522,0.00022142,2]
[330907250,1719937836936,-454.25461509,0.00022142,2]
[330907251,1719937836950,-5660.36809885,0.00022142,2]
[330907252,1719937836961,-39179.79301084,0.00022142,2]
[330907253,1719937836970,-210.06246653,0.00022142,2]
[330907254,1719937836979,-500.0,0.00022144,2]
[330907255,1719937836989,-867.43227348,0.00022144,2]
[330907256,1719937836998,-210.06246653,0.00022145,2]
[330907257,1719937837009,-152.52853177,0.00022163,2]
[330907258,1719937837020,-154.35372058,0.00022167,2]
[330907259,1719937837029,-210.06246653,0.00022171,2]
[330907260,1719937837038,-210.06246653,0.00022177,2]
[330907261,1719937837048,-50050.0,0.000222,2]
[330907262,1719937837058,-1875.0,0.000222,2]
[330907263,1719937837067,-3585.65053643,0.00022201,3]
[330907264,1719937837076,-333.42,0.00022201,2]
[330907265,1719937837087,-1488.51574263,0.00022211,2]
[330907266,1719937837096,-305.84118629,0.00022211,2]
[330907267,1719937837105,-155.0,0.00022211,2]
[330907268,1719937837114,-306.26287443,0.00022211,2]
[330907269,1719937837123,-17286.71515496,0.00022212,2]
[330907270,1719937837133,-3585.65053643,0.00022232,3]
[330907271,1719937837142,-500.0,0.00022242,2]
[330907272,1719937837151,-18119.04051834,0.00022242,2]
[330907273,1719937837160,-165.59222526,0.00022244,2]
[330907274,1719937837169,-500.0,0.0002225,2]
[330907275,1719937837178,-151.74222812,0.00022251,2]
[330907276,1719937837187,-3585.65053643,0.00022254,3]
[330907277,1719937837196,-500.0,0.00022259,2]
[330907278,1719937837205,-4773.99777968,0.00022264,2]
[330907279,1719937837214,-204.92818495,0.00022264,2]
[330907280,1719937837223,-500.0,0.00022268,2]
[330907281,1719937837232,-17286.71515489,0.00022274,2]
[330907282,1719937837242,-679.0,0.00022275,2]
[330907283,1719937837251,-500.0,0.00022277,2]
[330907284,1719937837260,-210.06246653,0.00022281,2]
[330907285,1719937837270,-179.6168885,0.00022283,2]
[330907286,1719937837279,-500.0,0.00022286,2]
[330907287,1719937837289,-71713.0107286,0.0002229,3]
[330907288,1719937837299,-14294.7231694,0.00022293,2]
[330907289,1719937837308,-716.30161992,0.00022294,2]
[330907290,1719937837317,-155.0,0.00022294,2]
[330907291,1719937837326,-500.0,0.00022294,2]
[330907292,1719937837336,-14342.6021457,0.00022298,3]
[330907293,1719937837346,-156085.90428698,0.000223,2]
[330907294,1719937837359,-555.90330277,0.000223,2]
[330907295,1719937837371,-1865.69249295,0.000223,2]
[330907296,1719937837382,-561.51132701,0.000223,2]
[330907297,1719937837393,-327.85685687,0.000223,2]
[330907298,1719937837405,-5957.84753364,0.000223,2]
[330907299,1719937837421,-360.67999992,0.000223,2]
[330907300,1719937837433,-453.4294482,0.000223,2]
[330907305,1719937838239,-1285.71256166,0.00014499,2]
[330907307,1719937838250,-5122.07639723,0.00019934,2]
[330907309,1719937838261,-1663.0,0.00021179,2]
[330907311,1719937838271,-166.8140169,0.00021837,2]
[330907312,1719937838281,-166.8140169,0.00021837,2]
[330907313,1719937838289,-22336.08300731,0.000223,2]
[330907314,1719937838300,-1546.25337223,0.000223,2]
[330907315,1719937838311,-11309.65662636,0.000223,2]
[330907316,1719937838322,-614.60712979,0.000223,2]
[330907317,1719937838350,-39039.03607382,0.000223,2]
[330907318,1719937838361,-820.5999,0.000223,2]
[330907319,1719937838373,-3164.93864215,0.000223,2]
[330907320,1719937838382,-500.0,0.00022303,2]
[330907321,1719937838390,-2882.55423922,0.00022308,2]
[330907322,1719937838402,-1807.72200578,0.00022308,2]
[330907323,1719937838461,-166.8140169,0.00021837,2]
[330907324,1719937838470,-53309.723755,0.00022308,2]
[330907325,1719937838480,-1142.86544397,0.00022309,2]
[330907326,1719937838490,-500.0,0.00022312,2]
[330907327,1719937838500,-500.0,0.00022321,2]
[330907328,1719937838509,-500.0,0.00022321,2]
[330907329,1719937838518,-500.0,0.00022323,2]
[330907330,1719937838527,-3585.65053643,0.00022328,3]
[330907331,1719937838537,-500.0,0.0002233,2]
[330907332,1719937838547,-500.0,0.0002233,2]
[330907333,1719937838556,-348.41001926,0.00022335,2]
[330907334,1719937838567,-6274.0,0.00022335,2]
[330907335,1719937838582,-2820.32,0.00022335,2]
[330907336,1719937838594,-5455.43200001,0.00022335,2]
[330907342,1719937840818,-38221.0,0.00021179,2]
[330907343,1719937840828,-166.8140169,0.00021837,2]
[330907344,1719937840838,-166.8140169,0.0002186,2]
[330907345,1719937840848,-166.8140169,0.0002186,2]
[330907346,1719937840858,-166.8140169,0.0002186,2]
[330907347,1719937840867,-166.8140169,0.0002186,2]
[330907348,1719937840877,-166.8140169,0.0002186,2]
[330907349,1719937840886,-166.8140169,0.0002186,2]
[330907350,1719937840895,-166.8140169,0.0002186,2]
[330907351,1719937840905,-166.8140169,0.0002186,2]
[330907352,1719937840914,-166.8140169,0.0002186,2]
[330907353,1719937840923,-2388.55313562,0.00022335,2]
[330907354,1719937840932,-500.0,0.00022338,2]
[330907355,1719937840942,-500.0,0.00022338,2]
[330907357,1719937840951,-181.65169362,0.0002234,2]
[330907359,1719937840960,-151.0,0.00022343,2]
[330907361,1719937840969,-500.0,0.00022347,2]
[330907363,1719937840978,-500.0,0.00022347,2]
[330907365,1719937840987,-500.0,0.00022356,2]
[330907367,1719937840997,-500.0,0.00022356,2]
[330907369,1719937841006,-220.33,0.00022356,3]
[330907371,1719937841020,-1202.9348436,0.00022361,2]
[330907373,1719937841029,-500.0,0.00022365,2]
[330907375,1719937841038,-500.0,0.00022365,2]
[330907378,1719937841048,-215.3395,0.00022365,2]
[330907381,1719937841057,-1000.0,0.00022365,2]
[330907384,1719937841066,-169.7347945,0.00022365,2]
[330907387,1719937841075,-426.61758951,0.00022365,2]
[330907390,1719937841084,-3585.65053643,0.00022366,3]
[330907392,1719937841095,-157.58773494,0.00022369,2]
[330907395,1719937841104,-210.06246653,0.00022371,2]
[330907398,1719937841114,-155.0,0.00022372,2]
[330907401,1719937841123,-155.0,0.00022372,2]
[330907404,1719937841133,-500.0,0.00022374,2]
[330907407,1719937841142,-500.0,0.00022374,2]
[330907410,1719937841151,-3585.65053643,0.00022374,3]
[330907414,1719937841161,-3585.65053643,0.00022381,3]
[330907415,1719937841170,-500.0,0.00022382,2]
[330907417,1719937841180,-500.0,0.00022382,2]
[330907419,1719937841190,-5800.0,0.00022384,2]
[330907421,1719937841199,-7171.30107286,0.0002239,3]
[330907424,1719937841209,-500.0,0.00022391,2]
[330907425,1719937841218,-16000.0,0.00022391,2]
[330907427,1719937841227,-500.0,0.00022391,2]
[330907429,1719937841236,-17286.71515489,0.00022397,2]
[330907431,1719937841247,-151.74222812,0.00022398,2]
[330907433,1719937841256,-1000.0,0.000224,2]
[330907435,1719937841265,-1000.0,0.000224,2]
[330907438,1719937841274,-500.0,0.000224,2]
[330907439,1719937841284,-982.0,0.000224,5]
[330907442,1719937841293,-1000.0,0.000224,2]
[330907444,1719937841303,-500.0,0.000224,2]
[330907445,1719937841312,-823.0,0.000224,10]
[330907448,1719937841321,-16000.0,0.000224,2]
[330907450,1719937841331,-500.0,0.000224,2]
[330907451,1719937841340,-1009.06,0.000224,2]
[330907453,1719937841349,-1929.96741106,0.000224,2]
[330907455,1719937841359,-1954.93085256,0.000224,2]
[330907457,1719937841368,-150.40483766,0.00022411,2]
[330907459,1719937841377,-1350.0,0.0002244,2]
[330907461,1719937841386,-7171.30107286,0.0002244,3]
[330907463,1719937841395,-153.66295654,0.00022441,2]
[330907464,1719937841405,-1050.2937607,0.0002245,2]
[330907465,1719937841414,-897.6526777,0.0002245,2]
[330907466,1719937841423,-12465.8931502,0.0002245,2]
[330907467,1719937841432,-10637.063131,0.0002245,2]
[330907468,1719937841442,-3585.65053643,0.00022454,3]
[330907469,1719937841451,-43027.8064372,0.00022455,3]
[330907470,1719937841460,-17286.71515489,0.00022459,2]
[330907471,1719937841470,-150.0,0.00022464,2]
[330907472,1719937841480,-300.0,0.00022464,2]
[330907473,1719937841489,-450.0,0.00022464,2]
[330907474,1719937841501,-600.0,0.00022464,2]
[330907475,1719937841510,-750.0,0.00022464,2]
[330907476,1719937841521,-900.0,0.00022464,2]
[330907477,1719937841530,-857.43444659,0.00022464,2]
[330907478,1719937841540,-500.0,0.00022464,2]
[330907479,1719937841549,-151.0,0.00022465,7]
[330907480,1719937841559,-151.0,0.00022465,7]
[330907481,1719937841568,-500.0,0.00022465,4]
[330907482,1719937841578,-517.70822825,0.00022465,4]
[330907483,1719937841587,-500.0,0.00022465,4]
[330907484,1719937841596,-500.0,0.00022465,4]
[330907485,1719937841606,-500.0,0.00022465,4]
[330907486,1719937841615,-182.13,0.00022465,4]
[330907487,1719937841625,-500.0,0.00022465,4]
[330907488,1719937841635,-500.0,0.00022465,4]
[330907489,1719937841644,-500.0,0.00022465,4]
[330907490,1719937841654,-204.79,0.00022465,4]
[330907491,1719937841664,-513.38,0.00022465,4]
[330907492,1719937841673,-500.0,0.00022465,4]
[330907493,1719937841682,-500.0,0.00022465,4]
[330907494,1719937841692,-500.0,0.00022465,4]
[330907495,1719937841701,-380.86,0.00022465,4]
[330907496,1719937841711,-500.0,0.00022465,4]
[330907497,1719937841720,-500.0,0.00022465,4]
[330907498,1719937841731,-157.91,0.00022465,4]
[330907499,1719937841741,-521.29,0.00022465,4]
[330907500,1719937841754,-151.0,0.00022465,7]
[330907501,1719937841763,-500.0,0.00022465,4]
[330907502,1719937841773,-251.93,0.00022465,4]
[330907503,1719937841783,-555.8473383,0.00022465,4]
[330907504,1719937841793,-151.0,0.00022465,7]
[330907505,1719937841804,-151.0,0.00022465,7]
[330907506,1719937841815,-500.0,0.00022465,4]
[330907507,1719937841826,-500.0,0.00022465,4]
[330907508,1719937841836,-500.0,0.00022465,4]
[330907509,1719937841845,-500.0,0.00022465,4]
[330907510,1719937841855,-244.84,0.00022465,4]
[330907511,1719937841865,-500.0,0.00022465,4]
[330907512,1719937841874,-500.0,0.00022465,4]
[330907513,1719937841883,-500.0,0.00022465,4]
[330907514,1719937841893,-639.73,0.00022465,4]
[330907515,1719937841903,-500.0,0.00022465,4]
[330907516,1719937841913,-542.43,0.00022465,4]
[330907517,1719937841922,-500.0,0.00022465,4]
[330907518,1719937841932,-500.0,0.00022465,4]
[330907519,1719937841941,-500.0,0.00022465,4]
[330907520,1719937841950,-151.0,0.00022465,7]
[330907521,1719937841960,-500.0,0.00022465,4]
[330907522,1719937841970,-151.0,0.00022465,7]
[330907523,1719937841979,-180.08,0.00022465,4]
[330907524,1719937841989,-500.0,0.00022465,4]
[330907525,1719937842000,-500.0,0.00022465,4]
[330907526,1719937842014,-500.0,0.00022465,4]
[330907527,1719937842024,-500.0,0.00022465,4]
[330907528,1719937842033,-500.0,0.00022465,4]
[330907529,1719937842043,-500.0,0.00022465,4]
[330907530,1719937842054,-500.92,0.00022465,4]
[330907531,1719937842063,-500.0,0.00022465,4]
[330907532,1719937842073,-500.0,0.00022465,4]
[330907533,1719937842082,-500.0,0.00022465,4]
[330907534,1719937842091,-500.0,0.00022465,4]
[330907535,1719937842102,-551.77,0.00022465,4]
[330907536,1719937842112,-500.0,0.00022465,4]
[330907537,1719937842121,-500.0,0.00022465,4]
[330907538,1719937842130,-500.0,0.00022465,4]
[330907539,1719937842140,-500.0,0.00022465,4]
[330907540,1719937842149,-500.0,0.00022465,4]
[330907541,1719937842158,-503.80125215,0.00022465,4]
[330907542,1719937842168,-151.0,0.00022465,7]
[330907543,1719937842177,-188.812633,0.00022465,7]
[330907544,1719937842186,-569.59,0.00022465,4]
[330907545,1719937842195,-586.35,0.00022465,4]
[330907546,1719937842204,-500.0,0.00022465,4]
[330907547,1719937842213,-500.0,0.00022465,4]
[330907548,1719937842222,-500.0,0.00022465,4]
[330907549,1719937842231,-500.0,0.00022465,4]
[330907550,1719937842240,-500.0,0.00022465,4]
[330907551,1719937842250,-500.0,0.00022465,4]
[330907552,1719937842259,-500.0,0.00022465,4]
[330907553,1719937842268,-500.0,0.00022465,4]
[330907554,1719937842277,-500.0,0.00022465,4]
[330907555,1719937842286,-500.0,0.00022465,4]
[330907556,1719937842295,-500.0,0.00022465,4]
[330907557,1719937842304,-371.67,0.00022465,4]
[330907558,1719937842314,-500.0,0.00022465,4]
[330907559,1719937842323,-500.0,0.00022465,4]
[330907560,1719937842333,-500.0,0.00022465,4]
[330907561,1719937842342,-500.0,0.00022465,4]
[330907562,1719937842352,-500.0,0.00022465,4]
[330907563,1719937842362,-500.0,0.00022465,4]
[330907564,1719937842371,-500.0,0.00022465,4]
[330907565,1719937842381,-454.79,0.00022465,4]
[330907566,1719937842391,-500.0,0.00022465,4]
[330907567,1719937842400,-500.0,0.00022465,4]
[330907569,1719937842410,-500.0,0.00022465,4]
[330907571,1719937842419,-500.0,0.00022465,4]
[330907572,1719937842428,-500.0,0.00022465,4]
[330907573,1719937842437,-500.0,0.00022465,4]
[330907575,1719937842447,-500.0,0.00022465,4]
[330907576,1719937842456,-500.0,0.00022465,4]
[330907578,1719937842465,-500.0,0.00022465,4]
[330907581,1719937842475,-500.0,0.00022465,4]
[330907583,1719937842485,-585.27,0.00022465,4]
[330907585,1719937842494,-500.0,0.00022465,4]
[330907587,1719937842504,-532.62,0.00022465,4]
[330907589,1719937842513,-506.53,0.00022465,4]
[330907591,1719937842522,-500.0,0.00022465,4]
[330907593,1719937842532,-440.29,0.00022465,4]
[330907595,1719937842541,-500.0,0.00022465,4]
[330907597,1719937842550,-221.84,0.00022465,4]
[330907599,1719937842559,-500.0,0.00022465,4]
[330907601,1719937842568,-500.0,0.00022465,4]
[330907603,1719937842578,-500.0,0.00022465,4]
[330907605,1719937842587,-572.35,0.00022465,4]
[330907607,1719937842598,-151.0,0.00022465,7]
[330907609,1719937842607,-151.0,0.00022465,7]
[330907611,1719937842617,-500.0,0.00022465,4]
[330907613,1719937842626,-500.0,0.00022465,4]
[330907615,1719937842636,-500.0,0.00022465,4]
[330907617,1719937842645,-500.0,0.00022465,4]
[330907619,1719937842654,-500.0,0.00022465,4]
[330907621,1719937842664,-500.0,0.00022465,4]
[330907623,1719937842673,-500.0,0.00022465,4]
[330907625,1719937842682,-500.0,0.00022465,4]
[330907627,1719937842692,-558.55079826,0.00022465,4]
[330907629,1719937842701,-500.0,0.00022465,4]
[330907631,1719937842710,-281.07,0.00022465,4]
[330907633,1719937842719,-151.0,0.00022465,7]
[330907635,1719937842728,-291.889998,0.00022465,7]
[330907637,1719937842738,-500.0,0.00022465,4]
[330907639,1719937842747,-500.0,0.00022465,4]
[330907641,1719937842756,-500.0,0.00022465,4]
[330907643,1719937842766,-500.0,0.00022465,4]
[330907645,1719937842775,-500.0,0.00022465,4]
[330907647,1719937842785,-500.0,0.00022465,4]
[330907649,1719937842794,-500.0,0.00022465,4]
[330907651,1719937842803,-500.0,0.00022465,4]
[330907653,1719937842813,-500.0,0.00022465,4]
[330907655,1719937842823,-500.0,0.00022465,4]
[330907657,1719937842833,-500.0,0.00022465,4]
[330907659,1719937842842,-500.0,0.00022465,4]
[330907661,1719937842852,-469.53,0.00022465,4]
[330907663,1719937842861,-500.0,0.00022465,4]
[330907665,1719937842871,-500.0,0.00022465,4]
[330907667,1719937842881,-500.0,0.00022465,4]
[330907669,1719937842891,-500.0,0.00022465,4]
[330907672,1719937842900,-605.66,0.00022465,4]
[330907674,1719937842910,-550.22259807,0.00022465,4]
[330907676,1719937842919,-501.96047466,0.00022465,4]
[330907678,1719937842929,-500.0,0.00022465,4]
[330907680,1719937842938,-500.0,0.00022465,4]